bitfinex-derivatives/quotes_SOLF0:USTF0_20250909
["timestamp","ask_amount","ask_price","bid_price","bid_amount"]
[1757460512587,0.03484737,217.26,217.25,4.30465013]
[1757460516391,0.03484737,217.26,217.25,0.45]
[1757460518392,7.2,217.25,217.24,3.85703029]
[1757460518588,0.03484737,217.26,217.22,4.30703029]
[1757460518793,7.2,217.25,217.22,4.30703029]
[1757460519495,0.03484737,217.26,217.22,4.30703029]
[1757460519496,0.03484737,217.26,217.23,0.45]
[1757460519697,0.03484737,217.26,217.23,3.85703029]
[1757460519897,0.03484737,217.26,217.25,0.45]
[1757460527301,0.03484737,217.26,217.25,4.30703029]
[1757460539417,0.03484737,217.26,217.25,0.45]
[1757460540015,0.03484737,217.26,217.25,4.31164205]
[1757460541513,0.03484737,217.26,217.25,0.45]
[1757460543119,0.03484737,217.26,217.25,5.53879493]
[1757460544422,0.03484737,217.26,217.25,0.45]
[1757460545017,7.64,217.33,217.25,0.45]
[1757460545324,7.64,217.33,217.3,0.44]
[1757460546318,7.64,217.4,217.32,3.86139274]
[1757460546518,7.64,217.4,217.32,6.89015732]
[1757460546818,7.64,217.4,217.33,0.44]
[1757460547125,7.64,217.4,217.34,0.03108738]
[1757460558432,7.64,217.4,217.26,0.44]
[1757460558628,7.39,217.38,217.26,0.44]
[1757460559634,7.39,217.33,217.26,0.44]
[1757460572751,7.39,217.33,217.25,3.86139274]
[1757460573045,7.39,217.33,217.24,6.89015732]
[1757460573440,7.39,217.33,217.24,3.86139274]
[1757460574552,9.32893394,217.33,217.24,5.80032668]
[1757460578850,9.32893394,217.33,217.24,1.93893394]
[1757460579051,9.32893394,217.33,217.24,5.80032668]
[1757460582553,9.32893394,217.33,217.24,1.93893394]
[1757460584549,7.47,217.28,217.21,5.80032668]
[1757460585054,7.47,217.28,217.2,6.28032668]
[1757460585454,7.47,217.26,217.2,6.28032668]
[1757460586354,7.47,217.26,217.2,2.41893394]
[1757460595560,7.47,217.26,217.2,0.48]
[1757460595760,7.47,217.26,217.2,2.41893394]
[1757460598659,7.47,217.26,217.23,0.47]
[1757460598854,7.47,217.26,217.24,1.93893394]
[1757460600264,7.47,217.26,217.24,2.40893394]
[1757460600864,0.0323933,217.27,217.25,0.47]
[1757460601166,7.47,217.34,217.27,0.47]
[1757460601362,70.87300323,217.38,217.27,1.93893394]
[1757460601363,1.93893394,217.36,217.27,1.93893394]
[1757460601565,7.47,217.33,217.26,1.93893394]
[1757460602464,7.47,217.33,217.27,0.03468251]
[1757460603072,7.47,217.31,217.27,0.03468251]
[1757460603273,7.47,217.29,217.27,0.03468251]
[1757460614184,1.93893394,217.3,217.27,0.03468251]
[1757460614388,7.03,217.29,217.27,0.03468251]
[1757460614690,1.93893394,217.3,217.27,0.03468251]
[1757460615387,7.03,217.29,217.27,0.03468251]
[1757460615991,1.93893394,217.3,217.27,0.03468251]
[1757460617087,7.03,217.29,217.27,0.03468251]
[1757460617283,1.93893394,217.3,217.27,0.03468251]
[1757460617488,7.03,217.29,217.27,0.03468251]
[1757460618185,1.93893394,217.3,217.27,0.03468251]
[1757460618387,7.03,217.29,217.27,0.03468251]
[1757460619287,7.03,217.36,217.27,0.03468251]
[1757460619487,7.03,217.33,217.27,0.03468251]
[1757460620294,7.03,217.31,217.27,0.03468251]
[1757460620494,1.93893394,217.28,217.27,0.03468251]
[1757460620696,8.96893394,217.28,217.27,0.03468251]
[1757460621595,7.03,217.28,217.27,0.03468251]
[1757460623896,7.03,217.33,217.27,0.03468251]
[1757460625201,7.03,217.33,217.27,1.97361645]
[1757460625889,7.03,217.33,217.29,1.93893394]
[1757460626091,7.03,217.33,217.3,0.48]
[1757460626799,7.03,217.36,217.3,0.48]
[1757460626997,7.03,217.36,217.32,1.93893394]
[1757460627197,7.03,217.36,217.32,2.41893394]
[1757460627397,316.35,217.4,217.33,0.48]
[1757460627796,7.03,217.4,217.33,0.48]
[1757460628393,7.03,217.4,217.34,1.93893394]
[1757460632903,7.03,217.4,217.33,1.93893394]
[1757460633201,7.03,217.4,217.33,2.41893394]
[1757460635807,7.03,217.4,217.33,0.48]
[1757460636008,7.03,217.4,217.33,2.41893394]
[1757460636413,7.03,217.4,217.33,0.48]
[1757460641014,7.03,217.4,217.34,0.48]
[1757460641208,7.03,217.45,217.37,0.48]
[1757460641917,7.03,217.45,217.39,0.03507163]
[1757460644325,7.03,217.45,217.39,3.53202757]
[1757460645717,7.03,217.45,217.39,3.06202757]
[1757460645912,7.03,217.45,217.4,0.47]
[1757460646118,7.43,217.52,217.42,3.02695594]
[1757460646717,7.43,217.52,217.45,0.03067914]
[1757460654018,7.43,217.52,217.46,0.47]
[1757460655924,7.43,217.52,217.45,3.05763508]
[1757460656522,7.43,217.52,217.45,0.03067914]
[1757460666133,7.43,217.62,217.5,0.47]
[1757460666335,7.43,217.62,217.45,0.03067914]
[1757460666336,7.43,217.62,217.53,0.47]
[1757460666721,7.43,217.62,217.55,0.03361442]
[1757460668326,7.43,217.62,217.55,3.06057036]
[1757460669228,7.43,217.62,217.55,0.03361442]
[1757460669432,7.43,217.62,217.48,3.02695594]
[1757460669629,7.43,217.6,217.46,0.47]
[1757460670433,10.45695594,217.6,217.46,0.47]
[1757460670835,7.43,217.54,217.43,3.53695594]
[1757460671130,7.43,217.54,217.47,0.51]
[1757460671835,0.03531572,217.53,217.47,0.51]
[1757460675234,7.58,217.52,217.43,0.51]
[1757460675434,7.58,217.52,217.43,3.53695594]
[1757460675834,0.03386467,217.5,217.43,3.53695594]
[1757460676432,7.61386467,217.5,217.43,3.53695594]
[1757460677033,7.61386467,217.5,217.43,0.51]
[1757460677335,7.61386467,217.5,217.42,3.02695594]
[1757460681437,7.61386467,217.5,217.42,3.53695594]
[1757460683036,0.03386467,217.5,217.46,0.51]
[1757460683233,0.03386467,217.5,217.45,3.02695594]
[1757460683635,0.03386467,217.5,217.46,0.51]
[1757460683930,7.61386467,217.5,217.46,0.51]
[1757460684337,0.03386467,217.5,217.45,3.02695594]
[1757460684636,0.03386467,217.5,217.46,0.51]
[1757460685033,7.58,217.49,217.45,3.02695594]
[1757460685233,7.58,217.49,217.45,3.53695594]
[1757460686539,7.58,217.49,217.45,3.02695594]
[1757460686734,7.58,217.49,217.46,0.51]
[1757460687636,0.03386467,217.5,217.45,3.02695594]
[1757460687934,7.58,217.49,217.45,3.02695594]
[1757460688140,7.58,217.49,217.45,3.53695594]
[1757460689434,17.24,217.48,217.37,3.82265158]
[1757460689638,7.58,217.47,217.34,3.02695594]
[1757460690140,7.58,217.42,217.34,3.02695594]
[1757460690339,7.58,217.42,217.35,0.51]
[1757460694542,7.58,217.42,217.32,4.33265158]
[1757460694748,7.58,217.42,217.32,0.51]
[1757460697746,7.58,217.42,217.31,3.02695594]
[1757460698050,7.58,217.42,217.29,3.02695594]
[1757460698552,9.52,217.48,217.31,1.93783067]
[1757460698553,7.58,217.39,217.31,1.93783067]
[1757460698758,7.58,217.37,217.31,1.93783067]
[1757460701153,7.58,217.37,217.29,1.93783067]
[1757460701355,1.93783067,217.36,217.27,1.93783067]
[1757460701559,7.58,217.35,217.27,1.93783067]
[1757460701954,7.58,217.32,217.27,1.93783067]
[1757460702160,7.58,217.32,217.25,1.93783067]
[1757460703460,0.03136928,217.33,217.27,1.93783067]
[1757460703856,7.26,217.32,217.27,1.93783067]
[1757460704059,0.03136928,217.33,217.27,1.93783067]
[1757460704258,7.26,217.32,217.27,1.93783067]
[1757460704461,0.03136928,217.33,217.27,1.93783067]
[1757460704764,7.26,217.32,217.27,1.93783067]
[1757460705762,0.03136928,217.33,217.27,1.93783067]
[1757460705962,7.26,217.32,217.27,1.93783067]
[1757460706459,0.03136928,217.33,217.27,1.93783067]
[1757460707057,7.26,217.32,217.27,1.93783067]
[1757460707258,0.03136928,217.33,217.27,1.93783067]
[1757460707658,7.26,217.32,217.27,1.93783067]
[1757460708154,0.03136928,217.33,217.27,1.93783067]
[1757460708358,7.26,217.32,217.27,1.93783067]
[1757460708554,0.03136928,217.33,217.27,1.93783067]
[1757460709465,7.26,217.32,217.27,1.93783067]
[1757460709665,0.03136928,217.33,217.27,1.93783067]
[1757460710062,7.26,217.32,217.27,1.93783067]
[1757460710265,0.03136928,217.33,217.27,1.93783067]
[1757460710464,7.26,217.32,217.27,1.93783067]
[1757460710664,0.03136928,217.33,217.27,1.93783067]
[1757460710863,7.26,217.32,217.27,1.93783067]
[1757460711063,7.26,217.32,217.26,1.93783067]
[1757460713268,7.26,217.32,217.24,0.51]
[1757460713566,7.26,217.32,217.26,1.93783067]
[1757460714366,7.26,217.32,217.27,0.51]
[1757460714568,7.26,217.32,217.28,2.44783067]
[1757460714969,7.29136928,217.33,217.28,2.44783067]
[1757460715165,0.03136928,217.33,217.29,0.51]
[1757460715369,7.26,217.32,217.29,0.51]
[1757460715662,0.03136928,217.33,217.28,0.51]
[1757460716069,7.26,217.32,217.28,2.44783067]
[1757460716569,0.03136928,217.33,217.28,2.44783067]
[1757460716768,7.26,217.32,217.28,1.93783067]
[1757460716970,7.26,217.32,217.29,0.51]
[1757460717370,0.03136928,217.33,217.29,0.51]
[1757460717668,7.26,217.32,217.29,0.51]
[1757460718060,7.26,217.32,217.28,1.93783067]
[1757460718868,7.26,217.32,217.28,2.44783067]
[1757460719069,0.03136928,217.33,217.28,2.44783067]
[1757460719269,7.26,217.32,217.28,2.44783067]
[1757460720671,0.03136928,217.33,217.28,2.44783067]
[1757460721066,7.26,217.32,217.28,2.44783067]
[1757460721473,7.26,217.32,217.28,1.93783067]
[1757460721771,0.03136928,217.33,217.28,1.93783067]
[1757460722167,7.26,217.32,217.28,2.44783067]
[1757460722366,7.26,217.32,217.29,0.51]
[1757460722970,7.26,217.32,217.28,1.93783067]
[1757460723374,0.03136928,217.33,217.28,1.93783067]
[1757460723571,7.26,217.32,217.28,1.93783067]
[1757460723771,0.03136928,217.33,217.28,1.93783067]
[1757460724375,7.26,217.32,217.27,1.93783067]
[1757460725876,0.03136928,217.33,217.27,1.93783067]
[1757460726477,7.26,217.32,217.25,2.44783067]
[1757460726673,0.03136928,217.33,217.22,1.93783067]
[1757460726674,7.26,217.3,217.22,1.93783067]
[1757460727474,7.26,217.27,217.21,1.93783067]
[1757460729176,7.26,217.27,217.2,0.51]
[1757460729377,7.26,217.27,217.22,1.93783067]
[1757460729579,7.26,217.27,217.21,1.93783067]
[1757460732380,7.26,217.27,217.24,0.51]
[1757460732584,0.03174185,217.28,217.23,1.93783067]
[1757460732776,7.26,217.27,217.23,1.93783067]
[1757460733676,7.26,217.27,217.2,1.93783067]
[1757460736781,9.19783067,217.27,217.18,1.93783067]
[1757460740380,6.93,217.24,217.18,1.93783067]
[1757460740579,6.93,217.24,217.16,1.93783067]
[1757460740982,6.95972605,217.22,217.16,1.93783067]
[1757460745185,6.95972605,217.22,217.17,1.93783067]
[1757460745381,0.02972605,217.22,217.17,1.93783067]
[1757460745581,0.02972605,217.22,217.17,2.45783067]
[1757460746282,0.02972605,217.22,217.17,1.93783067]
[1757460746283,6.93,217.21,217.17,1.93783067]
[1757460747687,0.02972605,217.22,217.17,1.93783067]
[1757460747888,0.02972605,217.22,217.19,1.93783067]
[1757460748088,0.02972605,217.22,217.2,0.52]
[1757460748285,6.95972605,217.22,217.2,0.52]
[1757460748885,6.95972605,217.22,217.19,1.93783067]
[1757460749089,6.93,217.21,217.19,1.93783067]
[1757460749397,0.02972605,217.22,217.19,1.93783067]
[1757460749589,6.93,217.21,217.17,2.45783067]
[1757460750388,0.02972605,217.22,217.17,2.45783067]
[1757460750590,6.93,217.21,217.17,2.45783067]
[1757460750889,6.93,217.21,217.18,0.52]
[1757460751088,0.02972605,217.22,217.17,1.93783067]
[1757460751292,6.95972605,217.22,217.19,1.93783067]
[1757460751792,6.95972605,217.22,217.19,2.45783067]
[1757460752291,6.93,217.21,217.19,2.45783067]
[1757460752493,6.93,217.21,217.19,1.93783067]
[1757460752694,6.93,217.21,217.16,0.52]
[1757460752887,6.93,217.21,217.17,1.93783067]
[1757460753085,6.93,217.21,217.17,2.45783067]
[1757460753396,6.93,217.21,217.18,0.52]
[1757460753899,6.93,217.21,217.19,0.52]
[1757460754089,0.02972605,217.22,217.2,0.52]
[1757460754791,0.02972605,217.22,217.19,1.93783067]
[1757460754994,0.02972605,217.22,217.21,2.45783067]
[1757460756096,0.02972605,217.22,217.21,1.93783067]
[1757460756598,0.02972605,217.22,217.21,2.45783067]
[1757460758399,0.02972605,217.22,217.21,0.52]
[1757460760995,6.95972605,217.22,217.19,3.55026832]
[1757460761202,6.95972605,217.22,217.17,0.52]
[1757460761203,6.93,217.21,217.17,0.52]
[1757460762201,6.93,217.21,217.15,3.82265158]
[1757460764199,7.46,217.21,217.16,3.82265158]
[1757460764500,7.46,217.21,217.15,3.82265158]
[1757460768003,7.46,217.21,217.14,3.82265158]
[1757460769514,7.46,217.21,217.14,4.33265158]
[1757460769816,0.02972605,217.22,217.17,3.54026832]
[1757460770012,0.02972605,217.22,217.18,0.51]
[1757460770212,0.02972605,217.22,217.17,3.03026832]
[1757460770213,7.48972605,217.22,217.17,3.03026832]
[1757460770610,7.48972605,217.22,217.18,0.51]
[1757460770805,7.46,217.21,217.16,3.82265158]
[1757460771009,7.46,217.21,217.15,3.82265158]
[1757460774716,7.46,217.21,217.15,3.85462168]
[1757460782426,7.46,217.21,217.14,3.85462168]
[1757460782621,7.46,217.21,217.12,3.85462168]
[1757460783024,7.46,217.21,217.11,4.36462168]
[1757460783324,7.46,217.21,217.11,0.51]
[1757460785927,7.46,217.21,217.1,3.85462168]
[1757460786225,7.46,217.19,217.08,0.51]
[1757460786428,7.46,217.17,217.08,0.51]
[1757460786625,7.46,217.17,217.06,3.85462168]
[1757460786825,7.46,217.14,217.06,3.85462168]
[1757460787221,7.46,217.14,217.04,27.21]
[1757460787222,7.46,217.14,217.05,3.85462168]
[1757460787626,7.46,217.14,217.04,4.36462168]
[1757460788222,7.46,217.14,217.04,0.51]
[1757460792230,7.46,217.14,217.01,0.51]
[1757460792834,7.46,217.09,217.01,0.51]
[1757460803237,0.03445591,217.1,217.0,100.0]
[1757460804340,7.03,217.09,217.0,100.0]
[1757460806240,0.03445591,217.1,217.0,100.0]
[1757460806441,7.03,217.09,217.0,100.0]
[1757460807744,0.03445591,217.1,217.0,100.0]
[1757460807944,7.03,217.09,217.0,100.0]
[1757460808945,0.03445591,217.1,217.0,100.0]
[1757460809140,7.03,217.09,217.0,100.0]
[1757460809542,0.03445591,217.1,217.0,100.0]
[1757460809737,7.03,217.09,217.0,100.0]
[1757460810045,3.06472423,217.1,217.0,100.0]
[1757460810247,7.03,217.09,217.0,100.0]
[1757460811146,3.06472423,217.1,217.0,100.0]
[1757460812246,7.03,217.09,217.0,100.0]
[1757460813147,7.03,217.09,217.01,0.52]
[1757460818051,0.03445591,217.1,217.01,0.52]
[1757460818247,0.03445591,217.1,217.02,0.52]
[1757460820452,0.03445591,217.1,217.07,0.52]
[1757460820646,0.03445591,217.1,217.06,1.94204361]
[1757460820845,0.03445591,217.1,217.07,0.52]
[1757460821349,0.03445591,217.1,217.06,1.94204361]
[1757460822553,0.03445591,217.1,217.07,0.52]
[1757460822752,7.06445591,217.1,217.07,0.52]
[1757460823052,7.06445591,217.1,217.06,1.94204361]
[1757460823254,7.06445591,217.1,217.07,0.52]
[1757460824155,7.06445591,217.1,217.06,1.94204361]
[1757460824356,7.06445591,217.1,217.07,0.52]
[1757460824956,7.06445591,217.1,217.08,0.52]
[1757460825961,0.03445591,217.1,217.08,0.52]
[1757460826965,7.44445591,217.1,217.08,0.52]
[1757460832865,7.41,217.09,217.07,0.52]
[1757460833070,0.03445591,217.1,217.06,5.79271265]
[1757460833472,0.03445591,217.1,217.07,0.52]
[1757460833672,0.03445591,217.1,217.08,0.52]
[1757460834073,7.44445591,217.1,217.08,0.52]
[1757460835575,0.03445591,217.1,217.07,0.52]
[1757460836171,0.03445591,217.1,217.08,0.52]
[1757460836365,0.03445591,217.1,217.07,0.52]
[1757460836565,0.03445591,217.1,217.09,0.52]
[1757460838474,7.41,217.08,217.05,2.46204361]
[1757460838781,7.41,217.08,217.05,1.94204361]
[1757460838979,7.41,217.08,217.06,0.52]
[1757460839178,9.35204361,217.09,217.03,3.85066904]
[1757460839478,9.35204361,217.09,217.01,3.85066904]
[1757460840075,1.94204361,217.08,217.01,3.85066904]
[1757460840382,7.41,217.07,217.01,3.85066904]
[1757460840881,9.38649952,217.1,217.03,0.52]
[1757460841480,7.44445591,217.1,217.03,0.52]
[1757460841986,9.38649952,217.1,217.03,0.52]
[1757460846288,7.44445591,217.1,217.05,0.52]
[1757460846479,7.44445591,217.1,217.07,0.52]
[1757460846674,0.03445591,217.1,217.04,1.94204361]
[1757460846986,9.35204361,217.09,217.02,1.94204361]
[1757460850489,9.35204361,217.09,217.0,105.79271265]
[1757460850490,7.41,217.08,217.0,105.79271265]
[1757460850690,1.94204361,217.07,217.0,101.94204361]
[1757460851088,7.41,217.06,217.0,101.94204361]
[1757460851679,0.03111041,217.05,217.0,101.94204361]
[1757460851884,7.41,217.04,217.01,0.52]
[1757460852186,0.03111041,217.05,217.0,101.94204361]
[1757460852787,7.41,217.04,217.0,102.46204361]
[1757460853287,7.41,217.04,217.0,100.0]
[1757460853692,1.97315402,217.05,217.0,100.0]
[1757460854086,7.35,217.04,217.0,100.0]
[1757460854287,1.97315402,217.05,217.0,100.0]
[1757460854487,7.35,217.04,217.0,100.0]
[1757460855292,1.97315402,217.05,217.0,100.0]
[1757460855600,7.35,217.04,217.0,100.0]
[1757460855788,1.97315402,217.05,217.0,100.0]
[1757460856195,7.35,217.04,217.0,100.0]
[1757460856396,1.97315402,217.05,217.0,100.0]
[1757460857294,7.35,217.04,217.0,100.0]
[1757460857495,1.97315402,217.05,217.0,100.0]
[1757460857696,7.35,217.04,217.0,100.0]
[1757460858092,1.97315402,217.05,217.0,100.0]
[1757460858895,7.35,217.04,217.0,100.0]
[1757460859499,1.97315402,217.05,217.0,100.0]
[1757460860000,7.35,217.04,217.01,0.52]
[1757460860503,1.97315402,217.05,217.01,0.52]
[1757460860694,1.97315402,217.05,217.0,100.52]
[1757460860895,7.38111041,217.05,217.02,0.52]
[1757460861397,7.35,217.04,217.0,100.52]
[1757460861896,1.97315402,217.05,217.0,100.52]
[1757460862097,7.35,217.04,217.0,100.52]
[1757460862300,1.97315402,217.05,217.0,100.52]
[1757460862700,7.35,217.04,217.0,100.52]
[1757460863600,0.03111041,217.05,217.01,0.52]
[1757460863790,0.03111041,217.05,217.0,100.0]
[1757460863991,0.03111041,217.05,217.02,0.52]
[1757460864802,0.03111041,217.05,217.01,0.52]
[1757460865001,0.03111041,217.05,217.0,100.0]
[1757460865198,0.03111041,217.05,217.02,0.52]
[1757460865793,7.35,217.04,217.01,0.52]
[1757460866003,7.35,217.03,217.0,100.0]
[1757460866496,0.03111041,217.05,217.0,100.0]
[1757460866693,7.38111041,217.05,217.02,0.52]
[1757460867205,7.38111041,217.05,217.01,0.52]
[1757460870605,0.03111041,217.05,217.0,100.0]
[1757460874701,1.94204361,217.04,217.0,100.0]
[1757460875600,1.94204361,217.02,217.0,100.0]
[1757460877812,1.94204361,217.04,217.0,100.0]
[1757460882424,0.03111041,217.05,217.0,100.0]
[1757460920546,3.03752814,217.04,217.0,100.0]
[1757460928151,112.46,217.03,217.0,100.0]
[1757460930851,7.44,217.02,217.0,100.0]
[1757460931045,10.47752814,217.01,217.0,100.0]
[1757460933359,10.47752814,217.01,216.96,0.52]
[1757460933548,10.47752814,217.01,216.89,0.52]
[1757460934255,0.03026016,216.97,216.89,0.52]
[1757460935352,21.41026016,216.97,216.89,0.52]
[1757460936249,7.44,216.96,216.86,3.85368888]
[1757460936455,7.44,216.96,216.83,8.18605179]
[1757460936456,3.03752814,216.87,216.77,5.66852365]
[1757460936654,3.03752814,216.87,216.77,0.52]
[1757460936655,42.04,216.86,216.77,0.52]
[1757460936854,3.03752814,216.84,216.77,0.52]
[1757460937048,3.17721645,216.83,216.77,0.52]
[1757460937250,7.96648084,216.82,216.7,0.52]
[1757460937446,11.69513462,216.81,216.7,0.52]
[1757460937652,11.69513462,216.8,216.7,0.52]
[1757460937953,0.03027389,216.78,216.7,0.52]
[1757460938159,4.78926439,216.77,216.7,0.52]
[1757460938352,4.78926439,216.76,216.7,0.52]
[1757460938553,4.78926439,216.75,216.7,0.52]
[1757460938851,0.03027389,216.78,216.7,0.52]
[1757460939052,4.69999097,216.77,216.7,0.52]
[1757460939254,0.03027389,216.78,216.72,3.03752814]
[1757460939753,0.03027389,216.78,216.72,3.49752814]
[1757460941954,0.03027389,216.78,216.72,0.46]
[1757460942352,0.03027389,216.78,216.74,1.94783671]
[1757460943854,1.94783671,216.75,216.56,7.6331924]
[1757460944059,7.54,216.76,216.65,1.94783671]
[1757460944355,1.94783671,216.75,216.67,1.94783671]
[1757460944559,0.02922946,216.73,216.67,1.94783671]
[1757460946161,0.02922946,216.73,216.63,0.80319431]
[1757460946359,0.02922946,216.73,216.68,1.94783671]
[1757460946859,0.02922946,216.73,216.69,0.03]
[1757460947453,0.02922946,216.73,216.7,1.94783671]
[1757460947659,0.02922946,216.73,216.71,0.03]
[1757460948054,0.02922946,216.73,216.72,1.94783671]
[1757460948250,0.02922946,216.73,216.72,1.97783671]
[1757460952552,9.51706617,216.73,216.63,0.80319431]
[1757460952761,1.94783671,216.71,216.63,1.97783671]
[1757460953063,7.54,216.7,216.63,1.97783671]
[1757460954361,7.54,216.7,216.63,0.03]
[1757460954362,1.94783671,216.69,216.63,0.03]
[1757460959464,0.03002796,216.68,216.62,0.03]
[1757460961464,7.54,216.67,216.62,0.03]
[1757460961665,7.54,216.66,216.6,0.80341683]
[1757460961867,1.94783671,216.65,216.6,0.80341683]
[1757460962067,7.54,216.64,216.6,0.80341683]
[1757460962269,7.54,216.64,216.6,0.83341683]
[1757460962463,7.54,216.64,216.6,0.80341683]
[1757460962667,1.94783671,216.65,216.6,0.80341683]
[1757460963068,1.94783671,216.67,216.6,0.80341683]
[1757460963268,1.94783671,216.67,216.6,0.83341683]
[1757460963467,1.94783671,216.67,216.6,2.78125354]
[1757460963768,7.57002796,216.68,216.6,2.78125354]
[1757460963965,7.57002796,216.68,216.62,1.94783671]
[1757460965267,0.03002796,216.68,216.64,1.94783671]
[1757460965461,0.03002796,216.68,216.65,0.03]
[1757460966569,0.03002796,216.68,216.67,1.97783671]
[1757460966876,7.54,216.79,216.68,0.03]
[1757460967063,47.84,216.89,216.74,1.94783671]
[1757460967064,7.54,216.81,216.74,1.94783671]
[1757460967264,3.75626071,216.8,216.74,1.94783671]
[1757460967465,7.54,216.81,216.74,1.94783671]
[1757460967771,3.75685912,216.8,216.74,1.94783671]
[1757460968072,7.54,216.81,216.74,1.94783671]
[1757460968273,7.54,216.79,216.74,1.94783671]
[1757460968473,7.54,216.81,216.74,1.94783671]
[1757460968672,3.75843028,216.8,216.74,1.94783671]
[1757460968867,3.75843028,216.79,216.74,1.94783671]
[1757460969176,7.54,216.81,216.74,1.94783671]
[1757460969471,7.54,216.79,216.74,1.94783671]
[1757460969673,1.94783671,216.8,216.66,0.03]
[1757460969870,7.54,216.75,216.67,1.94783671]
[1757460970071,7.54,216.73,216.67,1.94783671]
[1757460970271,7.54,216.71,216.65,1.94783671]
[1757460970869,7.54,216.71,216.63,1.94783671]
[1757460971373,7.54,216.71,216.65,1.97703888]
[1757460973070,7.54,216.71,216.67,1.97783671]
[1757460973272,7.54,216.75,216.69,1.94783671]
[1757460973572,7.54,216.8,216.73,1.94783671]
[1757460973772,7.64,216.78,216.76,1.94783671]
[1757460974173,3.76844282,216.77,216.76,1.94783671]
[1757460974675,11.40844282,216.77,216.76,1.94783671]
[1757460975271,7.64,216.83,216.76,1.94783671]
[1757460975473,6.93572084,216.82,216.78,1.94783671]
[1757460975676,6.93572084,216.81,216.78,1.94783671]
[1757460975875,7.64,216.79,216.78,1.94783671]
[1757460976076,11.41190421,216.79,216.78,1.94783671]
[1757460977183,11.41190421,216.79,216.77,0.02911493]
[1757460977184,7.64,216.78,216.77,0.02911493]
[1757460977376,11.41190421,216.78,216.77,0.02911493]
[1757460977681,14.58042727,216.78,216.77,0.02911493]
[1757460980280,6.94042727,216.78,216.77,1.97695164]
[1757460980476,14.58042727,216.78,216.77,0.02911493]
[1757460981384,18.31915151,216.78,216.77,0.02911493]
[1757460984579,12.78167682,216.86,216.77,0.04911493]
[1757460984778,7.64,216.84,216.82,1.94783671]
[1757460985177,7.64,216.88,216.82,1.94783671]
[1757460985476,5.14167682,216.89,216.8,0.02]
[1757460985477,7.64,216.86,216.84,1.94783671]
[1757460986076,7.64,216.9,216.84,1.94783671]
[1757460992887,310.1,216.94,216.83,0.0294291]
[1757460992888,7.64,216.92,216.86,1.94783671]
[1757460993487,310.1,216.94,216.87,0.03526896]
[1757460993682,7.64,216.93,216.87,0.03526896]
[1757460995485,7.64,216.93,216.88,1.94783671]
[1757460996989,7.64,216.93,216.87,0.03526896]
[1757460998399,123.36,216.93,216.87,0.03526896]
[1757460998594,7.64,216.92,216.88,1.94783671]
[1757460998794,115.72,216.93,216.88,1.94783671]
[1757460999497,7.64,216.92,216.88,1.94783671]
[1757461000094,115.72,216.93,216.88,1.94783671]
[1757461000497,7.64,216.92,216.88,1.94783671]
[1757461001491,115.72,216.93,216.88,1.94783671]
[1757461002395,115.72,216.93,216.87,0.03526896]
[1757461003098,7.64,216.92,216.87,0.03526896]
[1757461003298,115.72,216.93,216.87,0.03526896]
[1757461003994,7.42,216.92,216.87,0.03526896]
[1757461004194,7.42,216.92,216.88,0.02]
[1757461004503,7.42,217.01,216.88,3.060371]
[1757461004799,7.42,216.99,216.88,3.060371]
[1757461005194,7.42,216.99,216.92,0.02920287]
[1757461006898,115.48,216.98,216.92,0.02920287]
[1757461007294,7.42,216.97,216.92,0.02920287]
[1757461007597,115.48,216.98,216.92,0.02920287]
[1757461007797,7.42,216.97,216.92,0.02920287]
[1757461007997,115.48,216.98,216.92,0.02920287]